[Event "Titled Tuesday Blitz February 28 Early 2023"]
[White "Pakleza, Zbigniew"]
[Black "Zia, Tahsin Tajwar"]
[WhiteFideId "1119290"]
[BlackFideId "10211888"]
[WhiteElo "2410"]
[BlackElo "2061"]
[Result "1-0"]
[Round "04"]
[TimeControl "180+2"]
[Date "2023.02.28"]
[WhiteClock "0:00:15"]
[BlackClock "0:00:07"]

1. Nf3 {[%clk 0:03:00]}  d5 {[%clk 0:02:58]} 2. c4 {[%clk 0:03:00]}  e6 {[%clk 0:02:54]} 3. g3 {[%clk 0:03:00]}  Nf6 {[%clk 0:02:49]} 4. Bg2 {[%clk 0:03:01]}  dxc4 {[%clk 0:02:49]} 5. Qa4+ {[%clk 0:03:00]}  Bd7 {[%clk 0:02:48]} 6. Qxc4 {[%clk 0:03:01]}  c5 {[%clk 0:02:49]} 7. Ne5 {[%clk 0:02:54]}  Qc8 {[%clk 0:02:40]} 8. O-O {[%clk 0:02:50]}  Nc6 {[%clk 0:02:39]} 9. Nxd7 {[%clk 0:02:50]}  Qxd7 {[%clk 0:02:39]} 10. Nc3 {[%clk 0:02:35]}  Be7 {[%clk 0:02:37]} 11. Qa4 {[%clk 0:02:26]}  Rc8 {[%clk 0:02:28]} 12. Bxc6 {[%clk 0:02:08]}  Qxc6 {[%clk 0:02:21]} 13. Qxa7 {[%clk 0:01:42]}  O-O {[%clk 0:02:00]} 14. Qa4 {[%clk 0:01:40]}  Qxa4 {[%clk 0:01:53]} 15. Nxa4 {[%clk 0:01:41]}  b5 {[%clk 0:01:54]} 16. Nc3 {[%clk 0:01:38]}  b4 {[%clk 0:01:51]} 17. Na4 {[%clk 0:01:38]}  Ra8 {[%clk 0:01:34]} 18. Nb6 {[%clk 0:01:26]}  Ra6 {[%clk 0:01:29]} 19. Nc4 {[%clk 0:01:26]}  Rfa8 {[%clk 0:01:15]} 20. a3 {[%clk 0:01:25]}  Nd5 {[%clk 0:01:12]} 21. d3 {[%clk 0:01:22]}  Bf6 {[%clk 0:01:10]} 22. Be3 {[%clk 0:01:09]}  Bd4 {[%clk 0:00:57]} 23. Rfc1 {[%clk 0:00:57]}  h6 {[%clk 0:00:31]} 24. Kf1 {[%clk 0:00:55]}  Kh7 {[%clk 0:00:20]} 25. Bd2 {[%clk 0:00:51]}  g5 {[%clk 0:00:09]} 26. Rab1 {[%clk 0:00:38]}  b3 {[%clk 0:00:07]} 27. e3 {[%clk 0:00:31]}  Bf6 {[%clk 0:00:07]} 28. Ke2 {[%clk 0:00:32]}  Kg7 {[%clk 0:00:06]} 29. e4 {[%clk 0:00:31]}  Nc7 {[%clk 0:00:06]} 30. Be3 {[%clk 0:00:19]}  Bd4 {[%clk 0:00:04]} 31. Bxd4+ {[%clk 0:00:18]}  cxd4 {[%clk 0:00:05]} 32. Nd2 {[%clk 0:00:17]}  Ne8 {[%clk 0:00:03]} 33. Nxb3 {[%clk 0:00:17]}  e5 {[%clk 0:00:04]} 34. Nd2 {[%clk 0:00:16]}  Rb6 {[%clk 0:00:04]} 35. Nc4 {[%clk 0:00:17]}  Rb5 {[%clk 0:00:04]} 36. b4 {[%clk 0:00:15]}  Ra6 {[%clk 0:00:02]} 37. Ra1 {[%clk 0:00:14]}  Nd6 {[%clk 0:00:03]} 38. Nxd6 {[%clk 0:00:13]}  Rxd6 {[%clk 0:00:04]} 39. Rc5 {[%clk 0:00:12]}  Rxc5 {[%clk 0:00:04]} 40. bxc5 {[%clk 0:00:13]}  Rc6 {[%clk 0:00:05]} 41. Rc1 {[%clk 0:00:13]}  Kf6 {[%clk 0:00:04]} 42. Rc4 {[%clk 0:00:13]}  Ke7 {[%clk 0:00:05]} 43. Kd2 {[%clk 0:00:14]}  Kd7 {[%clk 0:00:06]} 44. Kc2 {[%clk 0:00:14]}  Ra6 {[%clk 0:00:06]} 45. c6+ {[%clk 0:00:14]}  Rxc6 {[%clk 0:00:05]} 46. Rxc6 {[%clk 0:00:14]}  Kxc6 {[%clk 0:00:06]} 47. Kb3 {[%clk 0:00:14]}  Kc5 {[%clk 0:00:05]} 48. g4 {[%clk 0:00:11]}  f6 {[%clk 0:00:06]} 49. a4 {[%clk 0:00:11]}  Kb6 {[%clk 0:00:04]} 50. Kb4 {[%clk 0:00:12]}  Kc6 {[%clk 0:00:05]} 51. a5 {[%clk 0:00:12]}  Kb7 {[%clk 0:00:06]} 52. Kb5 {[%clk 0:00:12]}  Ka7 {[%clk 0:00:06]} 53. a6 {[%clk 0:00:12]}  Ka8 {[%clk 0:00:06]} 54. Kb6 {[%clk 0:00:13]}  Kb8 {[%clk 0:00:07]} 55. a7+ {[%clk 0:00:12]}  Ka8 {[%clk 0:00:07]} 56. Ka6 {[%clk 0:00:13]}  h5 {[%clk 0:00:06]} 57. gxh5 {[%clk 0:00:13]}  g4 {[%clk 0:00:06]} 58. h6 {[%clk 0:00:13]}  g3 {[%clk 0:00:07]} 59. hxg3 {[%clk 0:00:13]}  f5 {[%clk 0:00:07]} 60. h7 {[%clk 0:00:14]}  f4 {[%clk 0:00:07]} 61. h8=Q# {[%clk 0:00:15]} 1-0


[Site "https://www.chess.com"]

[Event "Titled Tuesday Blitz February 28 Early 2023"]
[White "Hajiyev, Kanan"]
[Black "Peng, Li Min"]
[WhiteFideId "13404148"]
[BlackFideId "14112620"]
[WhiteElo "2103"]
[BlackElo "2436"]
[Result "0-1"]
[Round "04"]
[TimeControl "180+2"]
[Date "2023.02.28"]
[WhiteClock "0:00:09"]
[BlackClock "0:00:09"]

1. d4 {[%clk 0:02:58]}  Nc6 {[%clk 0:02:56]} 2. Nf3 {[%clk 0:02:59]}  d6 {[%clk 0:02:55]} 3. g3 {[%clk 0:02:58]}  Nf6 {[%clk 0:02:47]} 4. Bg2 {[%clk 0:02:57]}  g6 {[%clk 0:02:47]} 5. O-O {[%clk 0:02:58]}  Bg7 {[%clk 0:02:44]} 6. b3 {[%clk 0:02:59]}  O-O {[%clk 0:02:43]} 7. Bb2 {[%clk 0:02:59]}  Ne4 {[%clk 0:02:25]} 8. c4 {[%clk 0:02:53]}  e5 {[%clk 0:02:17]} 9. e3 {[%clk 0:02:47]}  exd4 {[%clk 0:02:12]} 10. Nxd4 {[%clk 0:02:45]}  Re8 {[%clk 0:02:06]} 11. Nxc6 {[%clk 0:02:39]}  bxc6 {[%clk 0:02:07]} 12. Bxg7 {[%clk 0:02:39]}  Kxg7 {[%clk 0:02:08]} 13. Qd4+ {[%clk 0:02:39]}  Qf6 {[%clk 0:02:06]} 14. Rd1 {[%clk 0:02:21]}  c5 {[%clk 0:01:45]} 15. Qxf6+ {[%clk 0:02:20]}  Kxf6 {[%clk 0:01:45]} 16. Nd2 {[%clk 0:02:21]}  Bb7 {[%clk 0:01:45]} 17. Rac1 {[%clk 0:02:05]}  Rab8 {[%clk 0:01:33]} 18. h4 {[%clk 0:02:04]}  Nxd2 {[%clk 0:01:28]} 19. Rxd2 {[%clk 0:02:02]}  Bxg2 {[%clk 0:01:28]} 20. Kxg2 {[%clk 0:02:03]}  a5 {[%clk 0:01:28]} 21. h5 {[%clk 0:01:57]}  a4 {[%clk 0:01:27]} 22. hxg6 {[%clk 0:01:54]}  hxg6 {[%clk 0:01:25]} 23. Rb1 {[%clk 0:01:40]}  Rb4 {[%clk 0:01:23]} 24. Kf3 {[%clk 0:01:04]}  Reb8 {[%clk 0:01:22]} 25. Rdb2 {[%clk 0:01:04]}  Ke5 {[%clk 0:00:44]} 26. Ke2 {[%clk 0:01:04]}  g5 {[%clk 0:00:42]} 27. g4 {[%clk 0:01:04]}  f5 {[%clk 0:00:39]} 28. gxf5 {[%clk 0:01:04]}  Kxf5 {[%clk 0:00:40]} 29. f3 {[%clk 0:00:56]}  Rh8 {[%clk 0:00:21]} 30. Kf2 {[%clk 0:00:43]}  Rh2+ {[%clk 0:00:19]} 31. Kg3 {[%clk 0:00:44]}  Rxb2 {[%clk 0:00:19]} 32. Rxb2 {[%clk 0:00:45]}  axb3 {[%clk 0:00:19]} 33. axb3 {[%clk 0:00:45]}  Rb8 {[%clk 0:00:19]} 34. Rb1 {[%clk 0:00:40]}  Rb6 {[%clk 0:00:17]} 35. Rb2 {[%clk 0:00:40]}  Rb8 {[%clk 0:00:17]} 36. Rb1 {[%clk 0:00:40]}  Ke5 {[%clk 0:00:18]} 37. Rb2 {[%clk 0:00:40]}  Kf6 {[%clk 0:00:18]} 38. Kg4 {[%clk 0:00:40]}  Re8 {[%clk 0:00:17]} 39. e4 {[%clk 0:00:39]}  Rh8 {[%clk 0:00:17]} 40. b4 {[%clk 0:00:39]}  Rb8 {[%clk 0:00:16]} 41. b5 {[%clk 0:00:39]}  Ra8 {[%clk 0:00:16]} 42. f4 {[%clk 0:00:37]}  gxf4 {[%clk 0:00:16]} 43. Kxf4 {[%clk 0:00:38]}  Ra4 {[%clk 0:00:16]} 44. Rc2 {[%clk 0:00:38]}  Ke6 {[%clk 0:00:16]} 45. Rc3 {[%clk 0:00:38]}  Ra1 {[%clk 0:00:15]} 46. Rh3 {[%clk 0:00:38]}  Rf1+ {[%clk 0:00:14]} 47. Ke3 {[%clk 0:00:37]}  Rc1 {[%clk 0:00:13]} 48. Rh7 {[%clk 0:00:37]}  Rc3+ {[%clk 0:00:12]} 49. Kf4 {[%clk 0:00:37]}  Rxc4 {[%clk 0:00:12]} 50. Rxc7 {[%clk 0:00:36]}  Rb4 {[%clk 0:00:11]} 51. Rb7 {[%clk 0:00:34]}  d5 {[%clk 0:00:07]} 52. Rb6+ {[%clk 0:00:33]}  Kd7 {[%clk 0:00:07]} 53. Ke5 {[%clk 0:00:32]}  dxe4 {[%clk 0:00:07]} 54. Kd5 {[%clk 0:00:32]}  e3 {[%clk 0:00:08]} 55. Rd6+ {[%clk 0:00:30]}  Kc7 {[%clk 0:00:08]} 56. Re6 {[%clk 0:00:30]}  Rxb5 {[%clk 0:00:07]} 57. Kc4 {[%clk 0:00:23]}  Rb1 {[%clk 0:00:05]} 58. Kxc5 {[%clk 0:00:20]}  Re1 {[%clk 0:00:04]} 59. Re7+ {[%clk 0:00:20]}  Kd8 {[%clk 0:00:04]} 60. Re4 {[%clk 0:00:21]}  e2 {[%clk 0:00:04]} 61. Rd4+ {[%clk 0:00:13]}  Ke7 {[%clk 0:00:04]} 62. Re4+ {[%clk 0:00:05]}  Kf6 {[%clk 0:00:04]} 63. Kc4 {[%clk 0:00:02]}  Rc1+ {[%clk 0:00:04]} 64. Kd3 {[%clk 0:00:03]}  e1=Q {[%clk 0:00:05]} 65. Rxe1 {[%clk 0:00:04]}  Rxe1 {[%clk 0:00:05]} 66. Kd2 {[%clk 0:00:04]}  Re5 {[%clk 0:00:06]} 67. Kd3 {[%clk 0:00:05]}  Kf5 {[%clk 0:00:07]} 68. Kd4 {[%clk 0:00:06]}  Re4+ {[%clk 0:00:07]} 69. Kd5 {[%clk 0:00:07]}  Re6 {[%clk 0:00:07]} 70. Kd4 {[%clk 0:00:07]}  Re5 {[%clk 0:00:08]} 71. Kd3 {[%clk 0:00:07]}  Re4 {[%clk 0:00:08]} 72. Kc3 {[%clk 0:00:08]}  Ke5 {[%clk 0:00:09]} 73. Kd3 {[%clk 0:00:08]}  Kd5 {[%clk 0:00:09]} 74. Kc3 {[%clk 0:00:09]}  Re3+ {[%clk 0:00:09]} 0-1


[Site "https://www.chess.com"]

[Event "Titled Tuesday Blitz February 28 Early 2023"]
[White "Javakhadze, Zurab"]
[Black "Pein, Jonathan"]
[WhiteFideId "13603647"]
[BlackFideId "417092"]
[WhiteElo "2381"]
[BlackElo "2151"]
[Result "1-0"]
[Round "04"]
[TimeControl "180+2"]
[Date "2023.02.28"]
[WhiteClock "0:00:03"]
[BlackClock "0:00:02"]

1. d4 {[%clk 0:03:00]}  d5 {[%clk 0:02:59]} 2. c4 {[%clk 0:03:01]}  Nc6 {[%clk 0:02:59]} 3. Nf3 {[%clk 0:02:56]}  Nf6 {[%clk 0:02:58]} 4. cxd5 {[%clk 0:02:55]}  Nxd5 {[%clk 0:02:53]} 5. e4 {[%clk 0:02:51]}  Nf6 {[%clk 0:02:53]} 6. d5 {[%clk 0:02:48]}  Nb8 {[%clk 0:02:53]} 7. Nc3 {[%clk 0:02:48]}  Bg4 {[%clk 0:02:53]} 8. Qb3 {[%clk 0:02:31]}  b6 {[%clk 0:02:49]} 9. Ne5 {[%clk 0:02:28]}  Bh5 {[%clk 0:02:46]} 10. Bb5+ {[%clk 0:02:20]}  Nfd7 {[%clk 0:02:46]} 11. Nc6 {[%clk 0:01:57]}  Nxc6 {[%clk 0:02:42]} 12. Bxc6 {[%clk 0:01:57]}  Rb8 {[%clk 0:02:41]} 13. Bf4 {[%clk 0:01:47]}  f6 {[%clk 0:02:21]} 14. Nb5 {[%clk 0:01:45]}  Rc8 {[%clk 0:02:02]} 15. Nxa7 {[%clk 0:01:38]}  g5 {[%clk 0:01:59]} 16. Bg3 {[%clk 0:01:33]}  Kf7 {[%clk 0:01:46]} 17. Nxc8 {[%clk 0:01:30]}  Qxc8 {[%clk 0:01:47]} 18. d6+ {[%clk 0:01:30]}  e6 {[%clk 0:01:47]} 19. dxc7 {[%clk 0:01:30]}  Nc5 {[%clk 0:01:44]} 20. Qb5 {[%clk 0:01:10]}  Bg6 {[%clk 0:01:36]} 21. Rd1 {[%clk 0:01:08]}  Be7 {[%clk 0:01:33]} 22. h4 {[%clk 0:01:06]}  gxh4 {[%clk 0:01:15]} 23. Rxh4 {[%clk 0:01:02]}  e5 {[%clk 0:01:16]} 24. Qxb6 {[%clk 0:00:50]}  Kg7 {[%clk 0:01:03]} 25. f4 {[%clk 0:00:44]}  f5 {[%clk 0:00:55]} 26. fxe5 {[%clk 0:00:34]}  fxe4 {[%clk 0:00:46]} 27. Rf4 {[%clk 0:00:25]}  Nd3+ {[%clk 0:00:46]} 28. Rxd3 {[%clk 0:00:24]}  exd3 {[%clk 0:00:47]} 29. Rd4 {[%clk 0:00:18]}  Qf5 {[%clk 0:00:40]} 30. Rd7 {[%clk 0:00:17]}  Qg5 {[%clk 0:00:36]} 31. Bf4 {[%clk 0:00:08]}  Qxf4 {[%clk 0:00:32]} 32. Rxe7+ {[%clk 0:00:08]}  Kh6 {[%clk 0:00:33]} 33. Qc5 {[%clk 0:00:04]}  d2+ {[%clk 0:00:27]} 34. Kd1 {[%clk 0:00:04]}  Bh5+ {[%clk 0:00:17]} 35. Bf3 {[%clk 0:00:04]}  Bxf3+ {[%clk 0:00:15]} 36. gxf3 {[%clk 0:00:05]}  Qxf3+ {[%clk 0:00:05]} 37. Kxd2 {[%clk 0:00:06]}  Qg2+ {[%clk 0:00:05]} 38. Kc3 {[%clk 0:00:05]}  Qf3+ {[%clk 0:00:05]} 39. Kb4 {[%clk 0:00:06]}  Rg8 {[%clk 0:00:05]} 40. Re6+ {[%clk 0:00:06]}  Kh5 {[%clk 0:00:05]} 41. Rf6 {[%clk 0:00:06]}  Rg4+ {[%clk 0:00:05]} 42. Ka5 {[%clk 0:00:05]}  Qa8+ {[%clk 0:00:05]} 43. Kb6 {[%clk 0:00:03]}  Ra4 {[%clk 0:00:03]} 44. e6+ {[%clk 0:00:03]}  Kh4 {[%clk 0:00:02]} 45. Rf4+ {[%clk 0:00:03]}  Rxf4 {[%clk 0:00:02]} 46. c8=Q {[%clk 0:00:03]} 1-0


[Site "https://www.chess.com"]

[Event "Titled Tuesday Blitz February 28 Early 2023"]
[White "Comas Fabrego, Lluis"]
[Black "Pourkashiyan, Atousa"]
[WhiteFideId "2200325"]
[BlackFideId "12502014"]
[WhiteElo "2523"]
[BlackElo "2228"]
[Result "1-0"]
[Round "04"]
[TimeControl "180+2"]
[Date "2023.02.28"]
[WhiteClock "0:00:04"]
[BlackClock "0:00:07"]

1. e4 {[%clk 0:03:00]}  c5 {[%clk 0:02:37]} 2. Nc3 {[%clk 0:03:00]}  e6 {[%clk 0:02:38]} 3. Nf3 {[%clk 0:03:00]}  a6 {[%clk 0:02:38]} 4. g3 {[%clk 0:02:59]}  b5 {[%clk 0:02:37]} 5. Bg2 {[%clk 0:02:59]}  Bb7 {[%clk 0:02:37]} 6. d3 {[%clk 0:03:00]}  Nc6 {[%clk 0:02:32]} 7. O-O {[%clk 0:02:59]}  b4 {[%clk 0:02:30]} 8. Na4 {[%clk 0:02:53]}  Nf6 {[%clk 0:02:30]} 9. e5 {[%clk 0:02:42]}  Nd5 {[%clk 0:02:22]} 10. c4 {[%clk 0:02:35]}  bxc3 {[%clk 0:02:13]} 11. bxc3 {[%clk 0:02:22]}  Be7 {[%clk 0:02:11]} 12. Rb1 {[%clk 0:02:17]}  Rb8 {[%clk 0:02:11]} 13. c4 {[%clk 0:02:10]}  Nc7 {[%clk 0:02:02]} 14. Be3 {[%clk 0:02:04]}  Nd4 {[%clk 0:01:34]} 15. Nxd4 {[%clk 0:01:49]}  Bxg2 {[%clk 0:01:34]} 16. Kxg2 {[%clk 0:01:39]}  cxd4 {[%clk 0:01:32]} 17. Bxd4 {[%clk 0:01:37]}  Rxb1 {[%clk 0:01:31]} 18. Qxb1 {[%clk 0:01:37]}  Qa8+ {[%clk 0:01:31]} 19. f3 {[%clk 0:01:27]}  O-O {[%clk 0:01:32]} 20. Qb6 {[%clk 0:01:19]}  Rc8 {[%clk 0:01:31]} 21. Rb1 {[%clk 0:01:18]}  a5 {[%clk 0:01:25]} 22. Qb7 {[%clk 0:01:06]}  Kf8 {[%clk 0:00:49]} 23. Qxa8 {[%clk 0:00:59]}  Rxa8 {[%clk 0:00:33]} 24. Rb7 {[%clk 0:00:57]}  Na6 {[%clk 0:00:31]} 25. Nb6 {[%clk 0:00:49]}  Rd8 {[%clk 0:00:25]} 26. Bc3 {[%clk 0:00:22]}  Nc5 {[%clk 0:00:24]} 27. Ra7 {[%clk 0:00:20]}  a4 {[%clk 0:00:18]} 28. Ba5 {[%clk 0:00:19]}  Ke8 {[%clk 0:00:14]} 29. d4 {[%clk 0:00:18]}  Nd3 {[%clk 0:00:12]} 30. Nxa4 {[%clk 0:00:15]}  f6 {[%clk 0:00:09]} 31. Bxd8 {[%clk 0:00:15]}  Bxd8 {[%clk 0:00:09]} 32. f4 {[%clk 0:00:13]}  g5 {[%clk 0:00:09]} 33. Kf3 {[%clk 0:00:09]}  gxf4 {[%clk 0:00:08]} 34. gxf4 {[%clk 0:00:10]}  Ne1+ {[%clk 0:00:09]} 35. Ke4 {[%clk 0:00:08]}  f5+ {[%clk 0:00:08]} 36. Ke3 {[%clk 0:00:08]}  Nc2+ {[%clk 0:00:08]} 37. Kd3 {[%clk 0:00:09]}  Ne1+ {[%clk 0:00:07]} 38. Kc3 {[%clk 0:00:06]}  Ng2 {[%clk 0:00:05]} 39. Nc5 {[%clk 0:00:03]}  Nxf4 {[%clk 0:00:05]} 40. Rxd7 {[%clk 0:00:03]}  Be7 {[%clk 0:00:02]} 41. Rb7 {[%clk 0:00:02]}  Ne2+ {[%clk 0:00:03]} 42. Kd3 {[%clk 0:00:02]}  Nc1+ {[%clk 0:00:03]} 43. Kc2 {[%clk 0:00:02]}  Ne2 {[%clk 0:00:04]} 44. Rb8+ {[%clk 0:00:03]}  Kf7 {[%clk 0:00:03]} 45. Rb7 {[%clk 0:00:03]}  Nxd4+ {[%clk 0:00:03]} 46. Kd3 {[%clk 0:00:04]}  Nc6 {[%clk 0:00:03]} 47. Rc7 {[%clk 0:00:03]}  Nxe5+ {[%clk 0:00:04]} 48. Kc3 {[%clk 0:00:03]}  Nf3 {[%clk 0:00:04]} 49. a4 {[%clk 0:00:03]}  f4 {[%clk 0:00:02]} 50. a5 {[%clk 0:00:03]}  Ng1 {[%clk 0:00:02]} 51. a6 {[%clk 0:00:04]}  Ne2+ {[%clk 0:00:02]} 52. Kd3 {[%clk 0:00:03]}  f3 {[%clk 0:00:03]} 53. Ke3 {[%clk 0:00:04]}  Nd4 {[%clk 0:00:02]} 54. Ne4 {[%clk 0:00:03]}  f2 {[%clk 0:00:02]} 55. Nxf2 {[%clk 0:00:03]}  Ke8 {[%clk 0:00:02]} 56. Kxd4 {[%clk 0:00:03]}  Bd6 {[%clk 0:00:03]} 57. Rxh7 {[%clk 0:00:03]}  Bxh2 {[%clk 0:00:02]} 58. Rxh2 {[%clk 0:00:03]}  Kd7 {[%clk 0:00:03]} 59. a7 {[%clk 0:00:02]}  Kc6 {[%clk 0:00:04]} 60. a8=Q+ {[%clk 0:00:03]}  Kb6 {[%clk 0:00:05]} 61. Qc8 {[%clk 0:00:03]}  Ka7 {[%clk 0:00:05]} 62. Ne4 {[%clk 0:00:03]}  Kb6 {[%clk 0:00:06]} 63. Rb2+ {[%clk 0:00:04]}  Ka7 {[%clk 0:00:07]} 64. Qb7# {[%clk 0:00:04]} 1-0


[Site "https://www.chess.com"]

[Event "Titled Tuesday Blitz February 28 Early 2023"]
[White "Fan_Of_Chucky"]
[Black "Aydincelebi, Kagan"]
[BlackFideId "6361102"]
[WhiteElo "2412"]
[BlackElo "2180"]
[Result "0-1"]
[Round "04"]
[TimeControl "180+2"]
[Date "2023.02.28"]
[WhiteClock "0:00:01"]
[BlackClock "0:01:53"]

1. d4 {[%clk 0:03:00]}  Nf6 {[%clk 0:02:59]} 2. c4 {[%clk 0:02:57]}  e6 {[%clk 0:03:00]} 3. Nf3 {[%clk 0:02:57]}  c5 {[%clk 0:03:00]} 4. d5 {[%clk 0:02:54]}  exd5 {[%clk 0:03:01]} 5. cxd5 {[%clk 0:02:54]}  d6 {[%clk 0:03:02]} 6. Nc3 {[%clk 0:02:46]}  g6 {[%clk 0:03:02]} 7. Bf4 {[%clk 0:02:44]}  a6 {[%clk 0:03:03]} 8. e4 {[%clk 0:02:37]}  Bg4 {[%clk 0:03:02]} 9. e5 {[%clk 0:01:56]}  dxe5 {[%clk 0:03:00]} 10. Bxe5 {[%clk 0:01:57]}  Nbd7 {[%clk 0:03:00]} 11. Bf4 {[%clk 0:01:43]}  Qe7+ {[%clk 0:02:55]} 12. Be2 {[%clk 0:01:38]}  Bg7 {[%clk 0:02:55]} 13. O-O {[%clk 0:01:33]}  O-O {[%clk 0:02:55]} 14. Re1 {[%clk 0:01:27]}  Rfe8 {[%clk 0:02:51]} 15. d6 {[%clk 0:00:53]}  Qf8 {[%clk 0:02:48]} 16. h3 {[%clk 0:00:46]}  Bf5 {[%clk 0:02:47]} 17. a4 {[%clk 0:00:30]}  Rad8 {[%clk 0:02:43]} 18. Bc4 {[%clk 0:00:28]}  h6 {[%clk 0:02:30]} 19. Nd5 {[%clk 0:00:21]}  Nxd5 {[%clk 0:02:25]} 20. Bxd5 {[%clk 0:00:18]}  Rxe1+ {[%clk 0:02:23]} 21. Qxe1 {[%clk 0:00:16]}  Bxb2 {[%clk 0:02:19]} 22. Ra2 {[%clk 0:00:13]}  Bg7 {[%clk 0:02:11]} 23. Bxb7 {[%clk 0:00:11]}  c4 {[%clk 0:02:11]} 24. Bxa6 {[%clk 0:00:09]}  c3 {[%clk 0:02:12]} 25. Bb5 {[%clk 0:00:03]}  Nc5 {[%clk 0:02:05]} 26. Be5 {[%clk 0:00:02]}  c2 {[%clk 0:01:56]} 27. Rxc2 {[%clk 0:00:01]}  Bxc2 {[%clk 0:01:55]} 28. Bxg7 {[%clk 0:00:01]}  Qxg7 {[%clk 0:01:53]} 0-1


[Site "https://www.chess.com"]

[Event "Titled Tuesday Blitz February 28 Early 2023"]
[White "Shuvalova, Polina"]
[Black "Bennett, Patrick"]
[WhiteFideId "24171760"]
[BlackFideId "1801228"]
[WhiteElo "2330"]
[BlackElo "2405"]
[Result "0-1"]
[Round "04"]
[TimeControl "180+2"]
[Date "2023.02.28"]
[WhiteClock "0:00:06"]
[BlackClock "0:00:22"]

1. e4 {[%clk 0:03:00]}  c5 {[%clk 0:02:59]} 2. Nf3 {[%clk 0:03:00]}  d6 {[%clk 0:02:59]} 3. d4 {[%clk 0:02:58]}  cxd4 {[%clk 0:03:00]} 4. Nxd4 {[%clk 0:02:58]}  Nf6 {[%clk 0:03:00]} 5. Nc3 {[%clk 0:02:57]}  Nc6 {[%clk 0:03:01]} 6. f3 {[%clk 0:02:30]}  Bd7 {[%clk 0:02:54]} 7. Be3 {[%clk 0:02:28]}  a6 {[%clk 0:02:48]} 8. Qd2 {[%clk 0:02:26]}  h5 {[%clk 0:02:36]} 9. h4 {[%clk 0:02:24]}  b5 {[%clk 0:02:19]} 10. O-O-O {[%clk 0:02:13]}  b4 {[%clk 0:02:17]} 11. Nd5 {[%clk 0:02:13]}  Nxd5 {[%clk 0:02:14]} 12. exd5 {[%clk 0:02:14]}  Ne5 {[%clk 0:02:14]} 13. f4 {[%clk 0:01:55]}  Ng4 {[%clk 0:02:13]} 14. Bg1 {[%clk 0:01:55]}  g6 {[%clk 0:02:11]} 15. Re1 {[%clk 0:01:43]}  Bg7 {[%clk 0:02:04]} 16. Bd3 {[%clk 0:01:37]}  O-O {[%clk 0:01:54]} 17. f5 {[%clk 0:01:32]}  Bh6 {[%clk 0:01:52]} 18. Be3 {[%clk 0:01:14]}  Nxe3 {[%clk 0:01:48]} 19. Rxe3 {[%clk 0:01:13]}  Qb6 {[%clk 0:01:39]} 20. Be4 {[%clk 0:00:56]}  Rac8 {[%clk 0:01:14]} 21. fxg6 {[%clk 0:00:27]}  Rc4 {[%clk 0:01:13]} 22. gxf7+ {[%clk 0:00:18]}  Kh8 {[%clk 0:01:13]} 23. c3 {[%clk 0:00:14]}  bxc3 {[%clk 0:01:10]} 24. bxc3 {[%clk 0:00:15]}  Qa5 {[%clk 0:00:41]} 25. Rhh3 {[%clk 0:00:06]}  Rxc3+ {[%clk 0:00:34]} 26. Rxc3 {[%clk 0:00:06]}  Bxd2+ {[%clk 0:00:30]} 27. Kxd2 {[%clk 0:00:07]}  Rxf7 {[%clk 0:00:26]} 28. Nb3 {[%clk 0:00:06]}  Qxa2+ {[%clk 0:00:24]} 29. Bc2 {[%clk 0:00:06]}  Bxh3 {[%clk 0:00:23]} 30. Rxh3 {[%clk 0:00:06]}  Rf2+ {[%clk 0:00:22]} 0-1


[Site "https://www.chess.com"]

[Event "Titled Tuesday Blitz February 28 Early 2023"]
[White "Tarasova, Viktoriya"]
[Black "Rosen, Eric"]
[WhiteFideId "4175840"]
[BlackFideId "2032562"]
[WhiteElo "2182"]
[BlackElo "2359"]
[Result "0-1"]
[Round "04"]
[TimeControl "180+2"]
[Date "2023.02.28"]
[WhiteClock "0:00:07"]
[BlackClock "0:00:03"]

1. d4 {[%clk 0:03:00]}  d5 {[%clk 0:02:53]} 2. c4 {[%clk 0:03:00]}  e6 {[%clk 0:02:53]} 3. Nc3 {[%clk 0:03:00]}  Nf6 {[%clk 0:02:53]} 4. cxd5 {[%clk 0:03:00]}  exd5 {[%clk 0:02:53]} 5. Bg5 {[%clk 0:02:59]}  c6 {[%clk 0:02:52]} 6. Qc2 {[%clk 0:02:59]}  Na6 {[%clk 0:02:47]} 7. a3 {[%clk 0:02:58]}  Nc7 {[%clk 0:02:47]} 8. e3 {[%clk 0:02:57]}  Bd6 {[%clk 0:02:37]} 9. Bd3 {[%clk 0:02:57]}  h6 {[%clk 0:02:36]} 10. Bh4 {[%clk 0:02:53]}  O-O {[%clk 0:02:32]} 11. Nge2 {[%clk 0:02:52]}  Re8 {[%clk 0:02:32]} 12. Bg3 {[%clk 0:02:35]}  a5 {[%clk 0:02:32]} 13. O-O {[%clk 0:02:34]}  Ne6 {[%clk 0:02:29]} 14. Bxd6 {[%clk 0:02:33]}  Qxd6 {[%clk 0:02:29]} 15. Ng3 {[%clk 0:02:33]}  g6 {[%clk 0:02:27]} 16. Rae1 {[%clk 0:02:31]}  Kg7 {[%clk 0:02:03]} 17. f3 {[%clk 0:02:30]}  h5 {[%clk 0:01:59]} 18. Qf2 {[%clk 0:02:28]}  b5 {[%clk 0:01:39]} 19. Nce2 {[%clk 0:02:19]}  h4 {[%clk 0:01:35]} 20. Nh1 {[%clk 0:02:18]}  Ng5 {[%clk 0:01:22]} 21. Bb1 {[%clk 0:01:33]}  h3 {[%clk 0:00:38]} 22. g3 {[%clk 0:01:33]}  Ra7 {[%clk 0:00:31]} 23. Nf4 {[%clk 0:01:28]}  c5 {[%clk 0:00:26]} 24. Nd3 {[%clk 0:01:12]}  cxd4 {[%clk 0:00:20]} 25. exd4 {[%clk 0:01:10]}  Rae7 {[%clk 0:00:21]} 26. Rxe7 {[%clk 0:01:06]}  Rxe7 {[%clk 0:00:21]} 27. Ne5 {[%clk 0:01:05]}  Qb6 {[%clk 0:00:17]} 28. Rd1 {[%clk 0:00:50]}  Rxe5 {[%clk 0:00:09]} 29. dxe5 {[%clk 0:00:47]}  Nxf3+ {[%clk 0:00:10]} 30. Kf1 {[%clk 0:00:47]}  Qxf2+ {[%clk 0:00:04]} 31. Kxf2 {[%clk 0:00:47]}  Nxe5 {[%clk 0:00:03]} 32. Kg1 {[%clk 0:00:41]}  Nfg4 {[%clk 0:00:03]} 33. Rc1 {[%clk 0:00:33]}  Ba6 {[%clk 0:00:02]} 34. Kf1 {[%clk 0:00:09]}  b4+ {[%clk 0:00:03]} 35. Ke1 {[%clk 0:00:09]}  Nf3+ {[%clk 0:00:03]} 36. Kd1 {[%clk 0:00:07]}  Ne3# {[%clk 0:00:03]} 0-1


[Site "https://www.chess.com"]